Cogmind - Beta 11 @@@ ROGUE MODE // 2022.04.07 @ 20:00:10 Player: Persona Result: Destroyed by D-53 Grenadier with Mini Grenade Launcher Performance ------------- Evolutions (0) 0 Regions Visited (2) 400 Robots Destroyed (25) 125 Value Destroyed (633) 633 Prototype IDs (3) 60 Alien Tech Used (0) 0 Bonus (-10) -10 TOTAL SCORE: 1208 Bonus ------- Friendly Fire -10 Cogmind --------- Core Integrity 0/250 Matter 300/300 Energy 100/100 System Corruption 1% Temperature Cool (0) Movement Core (250) Ox4 Location -10/Mines Parts ------- > --- POWER (1) -------- (None) > --- PROPULSION (2) --- (None) > --- UTILITY (2) ------ Medium Storage Unit Propulsion Shielding > --- WEAPON (2) ------- Particle Cannon > --- INVENTORY (10) --- Light Nuclear Core Aluminum Leg Improved Heat Sink Visual Processing Unit Sensor Array Shield Generator Beam Cannon Particle Cannon Grenade Launcher Peak State ------------ > --- POWER ------------ Improved Ion Engine > --- PROPULSION ------- Compact Wheel Compact Wheel > --- UTILITY ---------- Medium Storage Unit Shield Generator > --- WEAPON ----------- Small Laser Particle Cannon > --- INVENTORY -------- Light Nuclear Core Aluminum Leg Visual Processing Unit Sensor Array Beam Cannon Particle Cannon Grenade Launcher [Rating: 11] Favorites ----------- Power Ion Engine Engine Ion Engine Propulsion Aluminum Leg Leg Aluminum Leg Wheel Compact Wheel Flight Unit Flight Unit Utility Heat Sink Device Heat Sink Storage Medium Storage Unit Protection Propulsion Shielding Weapon Small Laser Energy Gun Small Laser Energy Cannon Beam Cannon Ballistic Gun Light Assault Rifle Build | -11 -10 -10 ------- Run | Scr Mat Min Slots Evolved . | . . . Power . | . . . Propulsion . | . . . Utility . | . . . Weapon . | . . . Parts Attached 39 | 6 31 2 Power 5 | 1 4 . Engine 5 | 1 4 . Core . | . . . Reactor . | . . . Propulsion 11 | 2 9 . Treads . | . . . Leg 6 | 2 4 . Wheel 2 | . 2 . Hover . | . . . Flight 3 | . 3 . Utility 13 | 1 11 1 Device 9 | 1 8 . Storage 3 | . 3 . Processor . | . . . Hackware . | . . . Protection 1 | . . 1 Artifact . | . . . Weapon 10 | 2 7 1 Energy Gun 3 | 1 2 . Energy Cannon 4 | . 4 . Ballistic Gun 3 | 1 1 1 Ballistic Cannon . | . . . Launcher . | . . . Special Weapon . | . . . Impact Weapon . | . . . Slashing Weapon . | . . . Piercing Weapon . | . . . Special Melee Weapon . | . . . Unidentified Prototypes . | . . . Parts Lost 7 | . 2 5 Power 1 | . . 1 Propulsion 2 | . . 2 Utility 2 | . 2 . Weapon 2 | . . 2 Highest Loss Streak 4 | . 1 4 To Critical Strikes . | . . . Average Slot Usage (%) 97 | . 97 99 Engine 14 | . 14 14 Leg 17 | . 19 . Wheel 4 | . 1 27 Flight 5 | . 6 . Device 17 | . 20 . Storage 6 | . 5 14 Protection 1 | . . 14 Energy Gun 11 | . 11 11 Energy Cannon 11 | . 10 14 Ballistic Gun 5 | . 5 2 Naked Turns . | . . . Heaviest Build 24 | 7 24 24 Greatest Support 32 | 20 32 32 Greatest Overweight (x) 5 | . 3 5 Average Overweight (x) . | . . . Largest Inventory Capacity 10 | 5 10 10 Average Capacity 6 | 5 6 10 Most Carried 10 | 5 10 9 Average Carried 5 | 2 5 8 Final Capacity 10 | 5 10 10 Final Carried 9 | 5 7 9 Class Distribution -------------------- 53% | Scavenger-Mutant 46% | Mutant Dominant Class ---------------- Scavenger-Mutant | -10/Materials Mutant | -10/Mines Resources | -11 -10 -10 ----------- Run | Scr Mat Min Matter Collected 661 | 264 334 63 Remotely . | . . . Salvage Created 869 | 42 783 44 Parts 53 | 4 44 5 Haulers Intercepted . | . . . Recyclers Shooed . | . . . Parts Field Recycled . | . . . Retrieved Matter . | . . . Parts Self-Destructed . | . . . Prevented . | . . . Kills | -11 -10 -10 ------- Run | Scr Mat Min Combat Hostiles Destroyed 20 | 1 16 3 Guns 9 | 1 7 1 Cannons 11 | . 9 2 Classes Destroyed 6 | 1 4 1 Worker 1 | . 1 . Operator 2 | . 2 . Watcher 3 | . 3 . Swarmer 5 | . 3 2 Grunt 14 | 1 13 . Assembled 1 | . . 1 Best Kill Streak 4 | 1 4 2 Combat Bots Only 4 | 1 4 2 Max Kills in Single Turn 2 | 1 2 1 Gunslinging . | . . . Exploded . | . . . Melee . | . . . Uniques/NPCs Destroyed . | . . . Combat | -11 -10 -10 -------- Run | Scr Mat Min Damage Taken 1224 | 56 582 586 Core 282 | 12 110 160 Absorbed by Shields 187 | . 187 . Redirected to Shielding 32 | . . 32 Core Remaining (%) 95 | 95 . . Volleys Fired 82 | 4 65 13 Largest 2 | 2 2 2 Hottest 108 | 70 100 108 Shots Fired 164 | 8 131 25 Gun 117 | 8 97 12 Cannon 47 | . 34 13 Launcher . | . . . Special . | . . . Kinetic 48 | 4 44 . Thermal 116 | 4 87 25 Explosive . | . . . Electromagnetic . | . . . Robot Hit Streak 7 | 2 7 2 Robot Miss Streak 9 | 3 5 9 Penetration Max . | . . . Secondary Targets 2 | . 2 . Max Gunslinging Chain 1 | . 1 . Shots Hit Robots 78 | 3 68 7 Core Hits 43 | 2 37 4 Critical Kills . | . . . Critical Parts Destroyed 1 | . 1 . Critical Strikes 2 | 1 1 . Burn 1 | 1 . . Destroy 1 | . 1 . Melee Attacks . | . . . Impact . | . . . Slashing . | . . . Piercing . | . . . Sneak Attacks . | . . . Combat Hostiles . | . . . Follow-up Attacks . | . . . Damage Inflicted 1117 | 53 942 122 Guns 597 | 53 504 40 Cannons 479 | . 397 82 Explosions . | . . . Melee . | . . . Ramming 41 | . 41 . Kinetic 211 | 17 194 . Thermal 865 | 36 707 122 Explosive . | . . . Electromagnetic . | . . . Impact . | . . . Slashing . | . . . Piercing . | . . . Highest Corruption 1 | . 1 1 Average Corruption 1 | . 1 1 Corruption Purged . | . . . Corruption Blocked . | . . . Effects 10 | . 7 3 Message Errors 1 | . 1 . Matter Fused 5 | . 3 2 Heat Flow Errors 2 | . 1 1 Data Loss (major) 1 | . 1 . Misfires 1 | . 1 . Overload Shots . | . . . Overflow Damage . | . . . Projectiles . | . . . Explosions . | . . . Melee . | . . . Knockbacks 1 | . 1 . Impact 1 | . 1 . Kinetic . | . . . Secondary . | . . . Self-Inflicted Damage 8 | . 8 . Shots . | . . . Rammed 2 | . 2 . Targets Rammed 8 | . 8 . Kicked 6 | . 6 . Crushed . | . . . Highest Temperature 414 | 68 221 414 Average Temperature 78 | 40 61 138 Received Heat Transfer 310 | 30 280 . Effects 2 | . . 2 Shutdowns 1 | . . 1 Energy Bleed 1 | . . 1 Siege Activations . | . . . Robots Corrupted . | . . . Combat Hostiles . | . . . Parts Fried . | . . . Impact Corruptions . | . . . Robots Melted . | . . . Combat Hostiles . | . . . Parts Melted 2 | . 2 . Heat Transferred 1910 | 185 1477 248 Parts Sabotaged . | . . . Parts Stolen . | . . . Parts Stripped . | . . . Power Chain Reactions . | . . . Missiles Intercepted . | . . . Alert | -11 -10 -10 ------- Run | Scr Mat Min Peak Influence 315 | 20 315 55 Initial 13 | . 13 3 Average 96 | 3 117 10 Maximum Alert Level 1 | . 1 . Low Security (%) 93 | 100 91 100 Level 1 6 | . 8 . Level 2 . | . . . Level 3 . | . . . Level 4 . | . . . Level 5 . | . . . High Security . | . . . Max Security . | . . . Squads Dispatched 5 | . 5 . Investigation 1 | . 1 . Extermination . | . . . Reinforcement 4 | . 4 . Assault . | . . . Garrison . | . . . Intercept . | . . . Searches Triggered . | . . . Construction Impeded . | . . . Haulers Reinforced . | . . . Active Scanning Responses . | . . . Cargo Convoy Interrupts . | . . . Stealth | -11 -10 -10 --------- Run | Scr Mat Min Distress Signals . | . . . Communications Jammed . | . . . Distress Signals . | . . . Times Spotted 40 | 1 31 8 Peak Tracking Total 6 | 1 6 3 Tactical Retreats 3 | . 1 2 Traps | -11 -10 -10 ------- Run | Scr Mat Min Traps Triggered . | . . . Indirectly . | . . . Trap Hack Attempts . | . . . Triggered . | . . . Disarmed . | . . . Reprogrammed . | . . . Reused . | . . . Traps Extracted . | . . . Installed . | . . . Triggered . | . . . Machines | -11 -10 -10 ---------- Run | Scr Mat Min Machines Disabled . | . . . Max in Single Turn . | . . . Machines Sabotaged . | . . . Garrisons Compromised . | . . . Overloaded Fab Kills . | . . . Hacking | -11 -10 -10 --------- Run | Scr Mat Min Machines Accessed 5 | . 5 . Terminals 3 | . 3 . Fabricators . | . . . Repair Stations . | . . . Recycling Units 2 | . 2 . Scanalyzers . | . . . Garrison Access . | . . . Total Hacks 12 | . 12 . Successful 9 | . 9 . Failed 3 | . 3 . Catastrophic . | . . . Database Lockouts . | . . . Manual . | . . . Terminals 9 | . 9 . Fabricators . | . . . Repair Stations . | . . . Recycling Units 3 | . 3 . Scanalyzers . | . . . Garrison Access . | . . . Terminal Hacks 6 | . 6 . Record 1 | . 1 . Prototype ID Bank 2 | . 2 . Locate Traps 1 | . 1 . Zone Layout 2 | . 2 . Fabricator Hacks . | . . . Repair Station Hacks . | . . . Recycling Unit Hacks 3 | . 3 . Process 1 | . 1 . Report Inventory 2 | . 2 . Scanalyzer . | . . . Garrison Access Hacks . | . . . Unauthorized Hacks . | . . . Terminals . | . . . Fabricators . | . . . Repair Stations . | . . . Recycling Units . | . . . Scanalyzers . | . . . Garrison Access . | . . . Data Cores Recovered . | . . . Used . | . . . Hacking Detections 4 | . 4 . Full Trace Events 1 | . 1 . Feedback Events 1 | . 1 . Corruption 1 | . 1 . Feedback Blocked . | . . . Robot Schematics Acquired . | . . . Robots Built . | . . . Authchips . | . . . Time . | . . . Total Robot Build Rating . | . . . Part Schematics Acquired . | . . . Parts Built . | . . . Authchips . | . . . Time . | . . . Total Part Build Rating . | . . . Parts Repaired . | . . . Time . | . . . Parts Recycled . | . . . Recycled Matter 103 | . 103 . Retrieved Matter . | . . . Retrieved Components . | . . . Parts Scanalyzed . | . . . Part Schematics Acquired . | . . . Parts Damaged . | . . . Bothacking | -11 -10 -10 ------------ Run | Scr Mat Min Used RIF Installer . | . . . Robots Hacked . | . . . Non-combat . | . . . Combat . | . . . Robot Hacks Applied . | . . . Relay Couplers Released . | . . . Fabnet Peak Effective % . | . . . Robots Rewired . | . . . Allies Hacked . | . . . Hacks Repelled . | . . . Allies | -11 -10 -10 -------- Run | Scr Mat Min Total Allies 3 | . . 3 Largest Group 3 | . . 3 Highest-Rated Group 40 | . . 40 Highest-Rated Ally 16 | . . 16 Total Orders . | . . . Ally Attacks 13 | . . 13 Total Damage 118 | . . 118 Kills 1 | . . 1 Allies Corrupted . | . . . Allies Melted . | . . . Intel | -11 -10 -10 ------- Run | Scr Mat Min Robot Analysis Total . | . . . Derelict Logs Recovered . | . . . Drone Launches . | . . . Drone Recoveries . | . . . Exploration | -11 -10 -10 ------------- Run | Scr Mat Min Turns Passed 2104 | 152 1699 253 Spaces Moved 1676 | 116 1384 176 Core 19 | 17 . 2 Treads . | . . . Legs 938 | 99 839 . Wheels 254 | . 80 174 Hover . | . . . Flight 465 | . 465 . Fastest Speed 37 | 50 37 100 Average Speed 100 | 109 99 102 Slowest Speed 300 | 120 280 300 Overloaded Moves . | . . . Propulsion Burnouts . | . . . Robots Hopped 3 | . 3 . Cave-ins Triggered . | . . . Exploration Rate (%) 44 | 7 97 30 Regions Visited 2 Branch Regions 1 Pre-discovered Areas . | . . . Known Exits Taken . | . . . Unknown Exits Taken 2 | 1 1 . Scrap Searched 1 | . . 1 Spaces Dug . | . . . Terrain Destroyed . | . . . Melee . | . . . Projectile . | . . . AOE . | . . . Terrain Rammed . | . . . Walls Destroyed . | . . . Machines Disabled . | . . . Actions | -11 -10 -10 --------- Run | Scr Mat Min Total 1947 | 130 1592 225 Wait 86 | . 54 32 Move 1668 | 115 1377 176 Hop 3 | . 3 . Pick Up 20 | 5 14 1 Fast Attach 24 | 6 16 2 Attach 6 | . 6 . Detach 7 | . 6 1 Swap 9 | . 9 . Drop 34 | . 34 . Fire 82 | 4 65 13 Melee . | . . . Ram 2 | . 2 . Kick 6 | . 6 . Crush . | . . . Escape Stasis . | . . . Rewire . | . . . Trap . | . . . Miscellaneous . | . . . Route ------- -11/Scrapyard -10/Materials (discovered 4 exits: [*Mat x3] / [*Min]) -10/Mines History --------- Turn | Location | Event 2 | -11/Scrapyard | Met Revision 17 114 | -11/Scrapyard | Discovered new exit (range 8) 153 | -11/Scrapyard | Entered Materials 301 | -10/Materials | Build established: Mutant 507 | -10/Materials | Discovered new exit (range 12) 789 | -10/Materials | Discovered new exit (range 15) 974 | -10/Materials | Discovered new exit (range 10) 1148 | -10/Materials | Build established: Scavenger-Mutant 1471 | -10/Materials | Discovered new exit (range 10) 1852 | -10/Materials | Entered Mines 1855 | -10/Mines | Met a Derelict bent on vengeance 1866 | -10/Mines | Assembled infested the area 1876 | -10/Mines | Assisted by bots powering up and referring to "LRC-V3" 1908 | -10/Mines | Core integrity fell below 50% 2050 | -10/Mines | Build established: Mutant 2097 | -10/Mines | Core integrity fell below 20% 2105 | -10/Mines | Destroyed by D-53 Grenadier with Mini Grenade Launcher Last Messages --------------- K-01 Serf collects debris. Trooper 1a destroyed. S-10 Pest destroyed. Sml. Laser destroyed. Overheating: Energy bleed (-42). S-10 Pest destroyed. System corrupted: Matter fused (-8). Acquired Lgt. Assault Rifle. Acquired 11 matter. Acquired 7 matter. Seismic Survey Station disabled. T-07 Excavator destroyed. The unstable cave ceiling collapses. Com. Wheel destroyed. K-01 Serf destroyed. Imp. Ion Engine destroyed. Com. Wheel destroyed. Lgt. Assault Rifle destroyed. The unstable cave ceiling collapses. [Achievement: First Step to Greatness] Map ----- +----------------------------------------------------+ | ???### ### #####??????? | | ??## ###########??????????? | | ??# = #????????????????????? | | ??# *%= ##????????????????????? | | ??# ###[ ##?????????????????????? | | ??# ####%#??????????????????????? | | ??## #?# #??????????????????????? | | ???## #?# #??????????????????????? | | ????#####?# #??????????????????????? | | ??????????# #??????????????????????? | | ??????????# #### #?????????????????? | | ??????????# #?????????????????? | | ??????????# ######?????????????????? | | ??????????# #??????????????????????? | | ??????##### ##?????????????????????? | | ?????## #?????????????????????? | | ????## d " #????????? #??????????? | | ????# # ######## #?????????? | | ?????# d ?????????? | | ????## ??????????? | | ????# ##?????????????????? | | ???## ###??????????????????? | | ???# #??????????????????? | | ????# #??????????????????? | | ????### #??????????????????? | | ??????## @ #??????????????????? | | ??? ##??????????????????? | | ??# #???????????????????? | | ?# #???????????????????? | | ?# #####???????????????????? | | ?## ##????????????????????????? | | ??## k ??????????????????????????? | | ???## ???????????????????????????? | | ????### ???????????????????????????? | | ??????#????????????????????????????? | | ???????????????????????????????????? | | ???????????????????????????????????? | | ???????????????????????????????????? | | ???????????????????????????????????? | | ???????????????????????????????????? | | ???????????????????????????????????? | | ???????????????????????????????????? | | ???????????????????????????????????? | | ???????????????????????????????????? | | ???????????????????????????????????? | | ???????????????????????????????????? | | ???????????????????????????????????? | | ???????????????????????????????????? | | ???????????????????????????????????? | | ???????????????????????????????????? | +----------------------------------------------------+ Best States ------------- Heat Dissipation 35 Energy Generation 12 Energy Capacity 365 Matter Stores 300 Matter Capacity 300 Sight Range 16 Terrain Scan Density 10 Propulsion Shielding 33 Evasion (%) 62 Item Schematics ----------------- None Robot Schematics ------------------ None Fabricated ------------ Nothing Alien Tech Used ----------------- None Achievements -------------- First Step to Greatness One Hack Too Far Storm Trooper Uninvited Guest Challenges ------------ None Game ------ Seed DronePortableBuckler Manual? 0 Play Time 00:53:24 Cumulative 1.7 hours Start 2022.04.07 @ 18:55:15 End 2022.04.07 @ 20:00:10 Sessions 1 Manual Loads 0 Difficulty Rogue Special Mode None Game No. 1 Rogue 1 Adventurer 0 Explorer 0 Win Type - Total 0 Types 0/0/0/0/0/0/0/0/0 Lore% 0 Gallery% 1 Achievement% 1 Wizard Run 0 Options --------- ASCII 0 Keyboard 1 Movement Numpad Keybinds 0 Fullscreen 1 Font 24/Crisp Map View 76x50 Tactical HUD 0 Map Filters NONE Filters NONE Steam 0 RUN: 424a8afd-0e2c-4fed-9718-d0282ba5f464